bitfinex-derivatives/quotes_SOLF0:USTF0_20241025
["timestamp","ask_amount","ask_price","bid_price","bid_amount"]
[1729849929076,2.9016,172.45,172.42,8.0565081]
[1729849929271,12.4565081,172.46,172.42,8.0565081]
[1729849929471,0.97114311,172.45,172.42,8.0565081]
[1729849929876,10.5568081,172.48,172.43,8.0565081]
[1729849930066,0.97108571,172.47,172.43,8.0565081]
[1729849930264,0.97108571,172.47,172.39,4.4]
[1729849930574,9.02759381,172.47,172.42,10.9585081]
[1729849930775,8.0565081,172.47,172.42,10.9585081]
[1729849931372,2.9014,172.46,172.42,10.9585081]
[1729849932965,17.8580081,172.48,172.43,10.9582081]
[1729849933171,0.97108186,172.47,172.43,10.9582081]
[1729849933568,14.9568081,172.48,172.43,10.9582081]
[1729849933878,0.9710819,172.47,172.43,10.9582081]
[1729849934071,3.8723819,172.47,172.43,8.0565081]
[1729849934372,2.9013,172.47,172.43,8.0565081]
[1729849934579,8.0565081,172.47,172.42,10.9585081]
[1729849935071,2.9014,172.46,172.42,8.0565081]
[1729849935272,8.0565081,172.47,172.42,8.0565081]
[1729849936175,8.0565081,172.47,172.42,10.9585081]
[1729849936568,8.0565081,172.47,172.43,1.45183259]
[1729849936772,8.0565081,172.47,172.44,1.45183259]
[1729849936971,8.0565081,172.47,172.42,10.9585081]
[1729849937278,10.9577081,172.47,172.43,1.45183259]
[1729849937476,10.9577081,172.47,172.42,10.9585081]
[1729849937669,10.9577081,172.47,172.43,1.45183259]
[1729849937871,10.9577081,172.47,172.42,10.9585081]
[1729849938072,10.9577081,172.47,172.43,1.45183942]
[1729849938275,10.9577081,172.47,172.42,10.9585081]
[1729849938474,10.9577081,172.47,172.43,1.45183954]
[1729849938679,10.9577081,172.47,172.42,10.9585081]
[1729849938881,10.9577081,172.47,172.43,4.35353259]
[1729849938882,8.0565081,172.47,172.43,4.35353259]
[1729849939070,8.0565081,172.47,172.43,2.9017]
[1729849940175,5.4014,172.48,172.43,2.9017]
[1729849940374,13.4579081,172.48,172.43,2.9017]
[1729849940579,13.4579081,172.48,172.44,1.45183256]
[1729849940779,13.4579081,172.48,172.43,2.9017]
[1729849940968,13.4579081,172.48,172.44,1.45183256]
[1729849941167,13.4579081,172.48,172.43,2.9017]
[1729849941372,13.4579081,172.48,172.44,1.45183942]
[1729849941567,13.4579081,172.48,172.43,2.9017]
[1729849941781,13.4579081,172.48,172.44,1.45183942]
[1729849941979,13.4579081,172.48,172.43,2.9017]
[1729849942279,13.4579081,172.48,172.44,1.45183246]
[1729849942473,13.4579081,172.48,172.45,1.45183246]
[1729849942671,13.4579081,172.48,172.44,2.9016]
[1729849942882,13.4579081,172.48,172.45,1.45175014]
[1729849943081,13.4579081,172.48,172.44,2.9016]
[1729849943284,13.4579081,172.48,172.45,1.45173656]
[1729849943473,13.4579081,172.48,172.44,2.9016]
[1729849943778,13.4579081,172.48,172.45,1.45173849]
[1729849943978,13.4579081,172.48,172.44,2.9016]
[1729849944173,13.4579081,172.48,172.45,1.45173829]
[1729849944377,10.5568081,172.48,172.45,1.45173829]
[1729849944676,2.9013,172.47,172.42,8.0565081]
[1729849944882,2.5003,172.48,172.43,11.83110391]
[1729849945078,10.5568081,172.48,172.44,1.45176762]
[1729849945271,5.4015,172.48,172.45,1.45176762]
[1729849945597,4.4,172.52,172.46,1.45170964]
[1729849945777,8.0565081,172.5,172.46,8.0565081]
[1729849946079,8.0565081,172.5,172.47,2.9012]
[1729849946478,2.9006,172.51,172.47,2.9012]
[1729849946680,10.9571081,172.51,172.46,8.0565081]
[1729849946982,10.9571081,172.51,172.46,10.9578081]
[1729849947184,10.9571081,172.51,172.46,2.9013]
[1729849947382,2.9008,172.5,172.45,8.0565081]
[1729849947584,8.0565081,172.49,172.46,1.45169225]
[1729849947882,8.0565081,172.49,172.44,8.0565081]
[1729849948088,8.0565081,172.49,172.45,1.45169225]
[1729849948280,8.0565081,172.49,172.46,1.45169225]
[1729849948480,8.0565081,172.49,172.44,8.0565081]
[1729849948677,10.9575081,172.49,172.45,1.45169225]
[1729849948878,10.9575081,172.49,172.46,1.45169225]
[1729849949078,10.9575081,172.49,172.44,10.9580081]
[1729849949285,10.9575081,172.49,172.45,1.45169225]
[1729849949583,10.9575081,172.49,172.46,1.45169225]
[1729849949788,10.9575081,172.49,172.45,2.9015]
[1729849949990,10.9575081,172.49,172.46,1.45169225]
[1729849950285,10.9575081,172.49,172.45,2.9015]
[1729849950474,8.0565081,172.49,172.46,2.9013]
[1729849950675,2.9007,172.5,172.46,2.9013]
[1729849950877,0.97097943,172.49,172.46,2.9013]
[1729849951183,0.97097943,172.49,172.46,2.9012]
[1729849951682,10.9571081,172.51,172.46,2.9012]
[1729849951895,0.97097342,172.5,172.46,2.9012]
[1729849952184,0.97097197,172.49,172.47,2.9011]
[1729849952580,8.0565081,172.51,172.47,2.9011]
[1729849952787,0.9709711,172.5,172.47,2.9011]
[1729849953097,0.97097199,172.49,172.47,2.9011]
[1729849953393,8.0565081,172.51,172.47,2.9011]
[1729849953580,0.97097346,172.5,172.47,2.9011]
[1729849954388,8.0565081,172.51,172.47,2.9011]
[1729849954682,9.02736931,172.5,172.47,2.9011]
[1729849954891,8.0565081,172.5,172.47,2.9011]
[1729849955095,8.0565081,172.5,172.44,8.0565081]
[1729849955390,8.0565081,172.49,172.45,3.77396723]
[1729849955694,8.0565081,172.49,172.46,1.45155382]
[1729849955886,8.0565081,172.49,172.45,2.9014]
[1729849956080,8.0565081,172.49,172.46,1.45157742]
[1729849956282,8.0565081,172.48,172.43,12.4565081]
[1729849956482,8.0565081,172.48,172.44,1.45163286]
[1729849956794,8.0565081,172.48,172.45,1.45163286]
[1729849956982,8.0565081,172.48,172.43,12.4565081]
[1729849957188,8.0565081,172.48,172.44,1.45164625]
[1729849957387,8.0565081,172.48,172.45,4.35304625]
[1729849957589,8.0565081,172.48,172.43,12.4565081]
[1729849958092,10.9576081,172.48,172.44,4.35334625]
[1729849958282,10.9576081,172.48,172.45,1.45164625]
[1729849958487,10.9576081,172.48,172.44,2.9017]
[1729849959987,2.9011,172.48,172.44,2.9017]
[1729849960189,10.9576081,172.48,172.44,2.9017]
[1729849960695,8.0565081,172.48,172.43,2.9018]
[1729849960897,8.0565081,172.48,172.44,1.45176704]
[1729849961095,8.0565081,172.48,172.43,2.9018]
[1729849961397,0.97104053,172.47,172.43,2.9018]
[1729849961594,0.97104053,172.47,172.44,2.9016]
[1729849961798,8.0565081,172.48,172.44,2.9016]
[1729849961997,10.9576081,172.48,172.42,8.0565081]
[1729849962198,10.9576081,172.48,172.44,2.9017]
[1729849962697,10.9576081,172.48,172.43,2.9018]
[1729849962901,8.0565081,172.48,172.44,1.45176704]
[1729849963092,2.9012,172.47,172.43,2.9018]
[1729849963395,2.9012,172.47,172.44,1.45176704]
[1729849963599,2.9012,172.47,172.43,2.9018]
[1729849963898,2.9012,172.47,172.44,1.45176704]
[1729849964204,2.9012,172.47,172.43,2.9018]
[1729849964495,2.9012,172.47,172.44,1.45176585]
[1729849964698,2.9012,172.47,172.43,2.9018]
[1729849964891,10.9577081,172.47,172.43,2.9018]
[1729849965301,8.0565081,172.47,172.43,2.9018]
[1729849965500,8.0565081,172.47,172.44,1.45175749]
[1729849965798,8.0565081,172.47,172.43,2.9018]
[1729849966001,8.0565081,172.47,172.44,1.45175752]
[1729849966197,8.0565081,172.47,172.43,2.9018]
[1729849966397,8.0565081,172.47,172.44,1.45175752]
[1729849966698,8.0565081,172.48,172.45,1.45167288]
[1729849966898,1.2985,172.49,172.42,8.0565081]
[1729849967090,1.2985,172.49,172.45,2.9014]
[1729849967293,1.2985,172.49,172.43,8.0565081]
[1729849967500,9.3550081,172.49,172.44,3.77435225]
[1729849967694,9.3550081,172.49,172.45,4.35307394]
[1729849967893,9.3550081,172.49,172.45,2.9014]
[1729849968288,9.3550081,172.49,172.46,2.9013]
[1729849968289,1.2985,172.49,172.46,2.9013]
[1729849968489,9.3550081,172.49,172.46,2.9013]
[1729849968792,9.3550081,172.49,172.45,2.9015]
[1729849969191,1.2985,172.49,172.45,10.9580081]
[1729849969396,9.3550081,172.49,172.46,1.45167407]
[1729849969703,9.3550081,172.49,172.45,2.9015]
[1729849969906,9.3550081,172.49,172.46,1.45167407]
[1729849970205,9.3550081,172.49,172.45,2.9015]
[1729849970499,9.3550081,172.49,172.46,1.45166016]
[1729849970699,9.3550081,172.49,172.45,2.9015]
[1729849970903,9.3550081,172.49,172.46,1.45166003]
[1729849971201,9.3550081,172.49,172.45,2.9015]
[1729849971500,9.3550081,172.49,172.46,1.45167394]
[1729849971797,12.2559081,172.49,172.44,2.9016]
[1729849972001,12.2559081,172.49,172.45,1.45167513]
[1729849972205,4.1994,172.49,172.44,2.9016]
[1729849972394,12.2559081,172.49,172.44,2.9016]
[1729849972589,12.2559081,172.49,172.45,1.45167513]
[1729849972797,12.2559081,172.49,172.46,1.45167513]
[1729849973001,12.2559081,172.49,172.44,2.9016]
[1729849973306,12.2559081,172.49,172.45,3.77431629]
[1729849973603,12.2559081,172.49,172.46,1.45166003]
[1729849973804,12.2559081,172.49,172.44,2.9016]
[1729849974003,8.0565081,172.47,172.45,1.45167526]
[1729849974205,8.0565081,172.47,172.46,1.45167526]
[1729849974500,8.0565081,172.47,172.44,2.9016]
[1729849975607,4.1994,172.49,172.44,2.9016]
[1729849975794,8.0565081,172.48,172.44,2.9016]
[1729849976201,4.1994,172.49,172.44,10.9581081]
[1729849976398,12.2559081,172.49,172.44,10.9581081]
[1729849977090,4.1994,172.49,172.44,10.9581081]
[1729849977294,8.0565081,172.48,172.44,10.9581081]
[1729849977899,2.9001,172.54,172.49,2.9008]
[1729849978208,8.0565081,172.52,172.49,2.9008]
[1729849978406,0.97082325,172.51,172.49,2.9008]
[1729849978698,8.0565081,172.52,172.49,2.9008]
[1729849979103,4.4,172.56,172.5,2.9007]
[1729849979299,0.97076317,172.55,172.48,8.0565081]
[1729849979499,9.02727127,172.54,172.48,8.0565081]
[1729849979695,8.0565081,172.54,172.48,8.0565081]
[1729849980705,8.0565081,172.53,172.48,8.0565081]
[1729849980907,8.0565081,172.53,172.44,4.4]
[1729849981107,8.0565081,172.51,172.47,8.0565081]
[1729849981403,8.0565081,172.51,172.48,2.901]
[1729849981803,8.0565081,172.51,172.49,2.9008]
[1729849983005,2.5795,172.54,172.47,8.0565081]
[1729849983203,2.5795,172.54,172.5,2.9006]
[1729849983204,8.0565081,172.52,172.5,2.9006]
[1729849984206,8.0565081,172.52,172.49,2.9008]
[1729849984707,8.0565081,172.52,172.5,1.45128672]
[1729849984916,8.0565081,172.52,172.51,1.45128672]
[1729849985103,8.0565081,172.52,172.49,2.9008]
[1729849985505,8.0565081,172.52,172.51,1.45128666]
[1729849985907,2.5795,172.54,172.51,1.45128666]
[1729849986214,8.0565081,172.52,172.47,8.0565081]
[1729849986411,8.0565081,172.52,172.48,12.41799949]
[1729849986707,8.0565081,172.52,172.49,6.67402709]
[1729849986911,8.0565081,172.52,172.5,1.45127965]
[1729849987107,8.0565081,172.52,172.51,1.45127965]
[1729849987813,8.0565081,172.52,172.49,2.9007]
[1729849988016,8.0565081,172.52,172.5,1.45127833]
[1729849988308,8.0565081,172.52,172.49,2.9007]
[1729849988623,8.0565081,172.52,172.5,1.45127846]
[1729849988818,2.5795,172.54,172.48,8.0565081]
[1729849989013,8.0565081,172.53,172.5,2.9007]
[1729849990015,275.97576003,172.77,172.49,8.0565081]
[1729849990216,275.97576003,172.77,172.5,1.45127664]
[1729849990217,5.35067217,172.59,172.5,1.45127664]
[1729849990405,8.0565081,172.54,172.5,8.0565081]
[1729849990617,3.7238,172.6,172.52,8.0565081]
[1729849990812,0.97064706,172.59,172.52,8.0565081]
[1729849991118,8.0565081,172.58,172.52,8.0565081]
[1729849991322,0.97064706,172.57,172.54,2.8999]
[1729849991518,8.1038,172.6,172.54,2.8999]
[1729849991717,3.86977598,172.59,172.54,2.8999]
[1729849991912,8.0565081,172.57,172.54,2.8999]
[1729849992415,8.0565081,172.57,172.52,8.0565081]
[1729849992621,8.0565081,172.57,172.53,1.45097768]
[1729849992818,2.8994,172.58,172.54,2.9]
[1729849993115,9.02696513,172.57,172.48,4.82387147]
[1729849993322,8.0565081,172.57,172.53,2.9001]
[1729849994025,8.0565081,172.57,172.51,8.0565081]
[1729849994227,2.8994,172.58,172.52,1.45096915]
[1729849994518,0.97045279,172.57,172.53,1.45096915]
[1729849994723,10.9559081,172.58,172.53,2.9002]
[1729849994914,2.8994,172.58,172.53,8.0565081]
[1729849995121,10.9558081,172.58,172.54,2.8999]
[1729849995317,8.1038,172.6,172.53,8.0565081]
[1729849995521,8.1038,172.6,172.56,8.0565081]
[1729849995522,0.9704167,172.59,172.56,8.0565081]
[1729849995820,0.9704167,172.59,172.56,2.8997]
[1729849996115,0.97038607,172.58,172.54,4.38]
[1729849996322,9.2741081,172.6,172.55,8.0565081]
[1729849996624,0.97038102,172.59,172.55,10.9563081]
[1729849997123,0.97038102,172.59,172.56,8.0565081]
[1729849997318,2.899,172.61,172.56,10.9561081]
[1729849997511,0.97036022,172.6,172.56,10.9561081]
[1729849998811,0.97036022,172.6,172.56,8.0565081]
[1729849999014,0.97036022,172.6,172.57,2.8995]
[1729849999217,2.899,172.61,172.58,8.0565081]
[1729849999423,0.97033099,172.6,172.58,8.0565081]
[1729850000320,2.8987,172.62,172.58,8.0565081]
[1729850000526,0.97031711,172.61,172.58,8.0565081]
[1729850003028,2.8987,172.62,172.58,8.0565081]
[1729850003320,8.0565081,172.63,172.58,8.0565081]
[1729850003523,8.0565081,172.63,172.58,10.9558081]
[1729850003524,0.97019199,172.62,172.58,10.9558081]
[1729850004432,8.0565081,172.65,172.59,8.0565081]
[1729850004619,4.38,172.7,172.59,8.0565081]
[1729850004620,9.026575,172.64,172.59,8.0565081]
[1729850004927,2.899,172.61,172.58,4.38]
[1729850005236,8.0565081,172.62,172.58,4.38]
[1729850005436,10.9553081,172.62,172.57,2.8995]
[1729850007423,10.9553081,172.62,172.57,8.0565081]
[1729850007424,8.0565081,172.62,172.57,8.0565081]
[1729850007623,8.0565081,172.63,172.58,2.8992]
[1729850008030,8.0565081,172.63,172.57,8.0565081]
[1729850008233,8.0565081,172.63,172.59,8.0565081]
[1729850008627,8.0565081,172.63,172.59,2.8991]
[1729850010328,8.0565081,172.62,172.59,2.8991]
[1729850010527,6.8644,172.66,172.58,8.0565081]
[1729850010727,8.0565081,172.63,172.58,8.0565081]
[1729850011121,2.8982,172.65,172.58,8.0565081]
[1729850011325,8.0565081,172.64,172.58,8.0565081]
[1729850011734,10.9549081,172.64,172.59,2.899]
[1729850011934,8.0565081,172.64,172.59,2.899]
[1729850012325,8.0565081,172.62,172.56,4.38]
[1729850012526,8.0565081,172.6,172.55,4.38]
[1729850013034,8.0565081,172.6,172.57,2.8993]
[1729850013233,8.0565081,172.6,172.55,4.38]
[1729850013441,8.0565081,172.6,172.55,12.4365081]
[1729850014127,8.0565081,172.6,172.56,2.8996]
[1729850014323,8.0565081,172.6,172.55,12.4365081]
[1729850014744,10.9552081,172.62,172.55,12.4365081]
[1729850014927,0.97008408,172.61,172.57,2.8994]
[1729850015235,10.9552081,172.62,172.57,2.8994]
[1729850015434,0.97008417,172.61,172.56,2.8995]
[1729850015636,0.97008417,172.61,172.55,12.4365081]
[1729850016528,0.97008417,172.61,172.57,8.0565081]
[1729850017232,9.02659227,172.61,172.58,2.8992]
[1729850017427,1.2012,172.66,172.57,8.0565081]
[1729850017635,8.0565081,172.63,172.57,8.0565081]
[1729850017834,0.97005568,172.62,172.57,8.0565081]
[1729850018034,8.0565081,172.62,172.57,8.0565081]
[1729850019439,8.0565081,172.62,172.59,2.8992]
[1729850019440,10.9552081,172.62,172.59,2.8992]
[1729850020641,8.0565081,172.62,172.59,2.8992]
[1729850022027,8.0565081,172.62,172.57,8.0565081]
[1729850023038,8.0565081,172.62,172.59,2.8991]
[1729850026737,2.8986,172.63,172.59,2.8991]
[1729850026934,10.9551081,172.63,172.59,2.8991]
[1729850030243,8.0565081,172.62,172.59,2.8991]
[1729850030948,8.0565081,172.62,172.57,8.0565081]
[1729850031150,8.0565081,172.62,172.58,2.8993]
[1729850033754,10.9552081,172.62,172.58,2.8993]
[1729850035049,8.0565081,172.62,172.57,8.0565081]
[1729850035638,2.89285595,172.68,172.61,8.0565081]
[1729850035842,9.3290081,172.68,172.63,8.0565081]
[1729850036043,12.20306025,172.68,172.63,8.0565081]
[1729850036239,12.20306025,172.68,172.62,2.8986]
[1729850036240,2.8981,172.66,172.62,2.8986]
[1729850036447,8.0565081,172.65,172.62,2.8986]
[1729850036645,8.0565081,172.64,172.6,2.899]
[1729850038447,10.9549081,172.64,172.6,2.899]
[1729850040844,2.8985,172.63,172.6,2.899]
[1729850041040,8.0565081,172.64,172.61,2.8987]
[1729850041349,8.0565081,172.65,172.6,8.0565081]
[1729850041857,8.0565081,172.65,172.62,2.8985]
[1729850042750,8.0565081,172.64,172.59,8.0565081]
[1729850042952,8.0565081,172.64,172.61,2.8988]
[1729850043454,8.0565081,172.64,172.62,2.8985]
[1729850044745,1.2725,172.68,172.6,8.0565081]
[1729850044957,1.2725,172.68,172.58,4.38]
[1729850044958,0.96989765,172.67,172.63,2.8983]
[1729850046053,9.0263969,172.66,172.63,2.8983]
[1729850046257,8.0565081,172.65,172.63,2.8983]
[1729850047159,4.1702,172.68,172.63,2.8983]
[1729850047452,9.02639749,172.67,172.63,2.8983]
[1729850047756,1.2725,172.68,172.63,8.0565081]
[1729850048246,1.2725,172.68,172.65,2.898]
[1729850048452,1.2725,172.68,172.63,8.0565081]
[1729850048758,8.0565081,172.71,172.68,2.8976]
[1729850048963,0.96962285,172.7,172.66,12.4365081]
[1729850049255,8.0565081,172.71,172.69,2.8974]
[1729850049651,8.0565081,172.74,172.68,8.0565081]
[1729850049853,8.0565081,172.74,172.66,4.38]
[1729850049854,8.0565081,172.72,172.66,4.38]
[1729850050056,0.96960195,172.71,172.67,8.0565081]
[1729850050661,8.0565081,172.7,172.62,1.2493]
[1729850050950,8.0565081,172.7,172.65,8.0565081]
[1729850051151,1.2419,172.75,172.63,8.0565081]
[1729850051152,8.0565081,172.69,172.63,8.0565081]
[1729850051356,8.0565081,172.69,172.64,5.82980936]
[1729850051561,8.0565081,172.69,172.64,4.38]
[1729850051758,8.0565081,172.67,172.64,4.38]
[1729850052757,8.0565081,172.67,172.64,7.2782]
[1729850054052,8.0565081,172.67,172.64,2.8982]
[1729850054856,2.8977,172.68,172.64,2.8982]
[1729850055161,10.9542081,172.68,172.64,2.8982]
[1729850055355,2.8975,172.69,172.65,2.8981]
[1729850055556,10.9540081,172.69,172.65,2.8981]
[1729850055757,2.8975,172.69,172.65,2.8981]
[1729850056054,10.9540081,172.69,172.65,2.8981]
[1729850057069,8.0565081,172.69,172.65,2.8981]
[1729850057262,2.8977,172.68,172.65,2.8981]
[1729850057763,2.8977,172.68,172.64,8.0565081]
[1729850057964,2.8977,172.68,172.64,10.9548081]
[1729850058172,2.8977,172.68,172.63,8.0565081]
[1729850058465,2.8977,172.68,172.64,1.44987772]
[1729850058670,2.8977,172.68,172.64,2.8983]
[1729850060170,2.8978,172.67,172.64,2.8983]
[1729850060472,2.8978,172.67,172.63,8.0565081]
[1729850060662,2.8978,172.67,172.64,1.44994221]
[1729850060861,2.8978,172.67,172.63,8.0565081]
[1729850061064,2.8978,172.67,172.64,1.44994209]
[1729850061269,2.8978,172.67,172.64,2.8983]
[1729850061658,2.8984,172.64,172.58,0.44154854]
[1729850061957,4.38,172.73,172.57,62.6]
[1729850061958,8.0565081,172.65,172.6,10.9554081]
[1729850062162,8.0565081,172.65,172.61,3.77006469]
[1729850062370,8.0565081,172.65,172.62,1.45002488]
[1729850062569,8.0565081,172.65,172.6,8.0565081]
[1729850062769,10.9548081,172.65,172.61,6.66899601]
[1729850062971,10.9548081,172.65,172.61,2.8988]
[1729850063177,10.9548081,172.65,172.62,1.45007624]
[1729850063482,10.9548081,172.65,172.61,2.8988]
[1729850063667,10.9548081,172.65,172.62,1.45007757]
[1729850063866,10.9548081,172.65,172.61,2.8988]
[1729850064076,10.9548081,172.65,172.62,1.45007638]
[1729850064370,10.9548081,172.65,172.61,2.8988]
[1729850064672,1.2442,172.68,172.62,1.45008358]
[1729850064859,10.9545081,172.67,172.63,12.40489376]
[1729850065059,8.0565081,172.67,172.64,1.44998566]
[1729850065360,8.0565081,172.67,172.63,10.9549081]
[1729850065666,8.0565081,172.67,172.64,1.44998136]
[1729850065973,8.0565081,172.67,172.63,10.9549081]
[1729850066271,2.898,172.66,172.64,1.45000794]
[1729850066471,2.898,172.66,172.63,10.9549081]
[1729850066969,2.898,172.66,172.64,1.45000218]
[1729850067169,2.898,172.66,172.63,10.9549081]
[1729850067477,2.898,172.66,172.64,1.45000913]
[1729850067769,8.0565081,172.67,172.61,8.0565081]
[1729850068068,2.8982,172.65,172.62,6.6687721]
[1729850068268,2.8982,172.65,172.63,1.45006619]
[1729850068467,2.8982,172.65,172.62,2.8986]
[1729850068671,2.8982,172.65,172.63,1.45008121]
[1729850068869,2.8982,172.65,172.61,2.8987]
[1729850069066,2.8982,172.65,172.62,1.45007782]
[1729850069270,2.8982,172.65,172.63,1.45007782]
[1729850069469,2.8982,172.65,172.62,8.0565081]
[1729850069779,2.8979,172.67,172.63,4.3484763]
[1729850069973,2.8979,172.67,172.63,2.8984]
[1729850070280,2.898,172.66,172.63,2.8984]
[1729850070466,2.898,172.66,172.64,1.45004724]
[1729850070668,2.898,172.66,172.63,2.8984]
[1729850070869,2.898,172.66,172.64,1.4500369]
[1729850071074,2.898,172.66,172.63,2.8984]
[1729850071277,2.898,172.66,172.64,1.45003664]
[1729850071473,2.898,172.66,172.63,2.8984]
[1729850071672,2.898,172.66,172.64,1.4500369]
[1729850071976,2.898,172.66,172.63,2.8984]
[1729850072165,2.898,172.66,172.64,1.4500369]
[1729850072371,2.898,172.66,172.63,2.8984]
[1729850072565,2.898,172.66,172.64,1.4500369]
[1729850072764,2.898,172.66,172.62,10.9551081]
[1729850072966,2.898,172.66,172.63,3.77009594]
[1729850073180,2.898,172.66,172.62,10.9551081]
[1729850073181,2.898,172.66,172.64,1.4500369]
[1729850073379,2.898,172.66,172.62,10.9551081]
[1729850073677,2.898,172.66,172.63,3.77009594]
[1729850073878,2.898,172.66,172.64,1.4500369]
[1729850074100,8.0565081,172.67,172.62,8.0565081]
[1729850074266,4.1419,172.68,172.64,2.8983]
[1729850074468,12.1984081,172.68,172.64,2.8983]
[1729850075077,12.1984081,172.68,172.65,1.45002301]
[1729850075275,12.1984081,172.68,172.64,2.8983]
[1729850075581,12.1984081,172.68,172.65,1.44997972]
[1729850075770,12.1984081,172.68,172.64,2.8983]
[1729850075972,12.1984081,172.68,172.65,1.44997972]
[1729850076170,12.1984081,172.68,172.64,2.8983]
[1729850076375,12.1984081,172.68,172.65,1.4499809]
[1729850076587,12.1984081,172.68,172.64,2.8983]
[1729850076772,1.2,172.75,172.65,1.4499809]
[1729850076977,2.8976,172.69,172.66,1.4498799]
[1729850077179,8.0565081,172.67,172.63,4.38]
[1729850077379,8.0565081,172.67,172.64,9.48220517]
[1729850077581,8.0565081,172.67,172.65,1.44987919]
[1729850077879,8.0565081,172.67,172.63,4.38]
[1729850078278,8.0565081,172.67,172.64,9.48242227]
[1729850078477,8.0565081,172.67,172.65,3.76969789]
[1729850078683,8.0565081,172.67,172.66,1.4498838]
[1729850080086,8.0565081,172.69,172.66,1.4498838]
[1729850080383,8.0565081,172.69,172.64,2.8982]
[1729850080590,2.8978,172.68,172.65,1.44987682]
[1729850080886,2.8978,172.68,172.66,1.44987682]
[1729850081186,8.0565081,172.69,172.65,2.8981]
[1729850081485,10.9540081,172.69,172.66,1.44987653]
[1729850081678,10.9540081,172.69,172.65,2.8981]
[1729850082076,10.9540081,172.69,172.66,1.44987772]
[1729850082277,5.58,172.75,172.64,2.8983]
[1729850082278,10.9543081,172.68,172.64,2.8983]
[1729850082483,10.9543081,172.68,172.65,1.4498783]
[1729850082684,10.9543081,172.68,172.66,1.4498783]
[1729850082984,10.9543081,172.68,172.64,2.8983]
[1729850083180,2.8979,172.67,172.65,1.44987772]
[1729850083384,2.8979,172.67,172.66,1.44987772]
[1729850083684,8.0565081,172.68,172.66,1.44987772]
[1729850083886,8.0565081,172.68,172.64,2.8983]
[1729850084187,8.0565081,172.68,172.65,1.44987772]
[1729850084377,8.0565081,172.68,172.66,1.44987772]
[1729850084581,10.9542081,172.68,172.64,2.8983]
[1729850084783,10.9542081,172.68,172.65,1.4498789]
[1729850084985,10.9542081,172.68,172.66,1.4498789]
[1729850085185,10.9542081,172.68,172.65,2.8981]
[1729850085578,10.9542081,172.68,172.66,1.44987772]
[1729850085784,10.9542081,172.68,172.65,2.8981]
[1729850086086,10.9542081,172.68,172.66,1.44987078]
[1729850086282,10.9542081,172.68,172.65,2.8981]
[1729850086488,10.9542081,172.68,172.66,1.44987078]
[1729850086685,10.9542081,172.68,172.65,2.8981]
[1729850086883,10.9542081,172.68,172.66,1.44987772]
[1729850087093,10.9542081,172.68,172.65,2.8981]
[1729850087287,10.9542081,172.68,172.66,1.44987078]
[1729850087483,10.9542081,172.68,172.65,2.8981]
[1729850087681,10.9542081,172.68,172.66,1.44987078]
[1729850087885,10.9542081,172.68,172.64,2.8983]
[1729850088197,10.9542081,172.68,172.65,3.76968207]
[1729850088492,10.9542081,172.68,172.66,1.44987772]
[1729850088794,10.9542081,172.68,172.64,2.8983]
[1729850088989,10.9542081,172.68,172.65,1.44988693]
[1729850089188,10.9542081,172.68,172.64,2.8983]
[1729850089489,8.0565081,172.65,172.6,4.38]
[1729850089690,8.0565081,172.62,172.61,9.48354677]
[1729850089895,8.0565081,172.62,172.61,3.77023309]
[1729850090192,8.0565081,172.62,172.61,9.48364717]
[1729850090392,8.0565081,172.62,172.61,3.7703052]
[1729850091486,8.0565081,172.62,172.61,4.34891738]
[1729850091689,8.0565081,172.62,172.61,1.45011738]
[1729850091994,8.0565081,172.62,172.6,4.38]
[1729850092192,8.0565081,172.62,172.57,62.6]
[1729850092193,8.0565081,172.62,172.59,2.8992]
[1729850092387,8.0565081,172.62,172.6,7.16561474]
[1729850092593,8.0565081,172.61,172.57,2.83921474]
[1729850092795,8.0565081,172.6,172.58,7.16708566]
[1729850092989,8.0565081,172.6,172.55,4.38]
[1729850093290,8.0565081,172.6,172.56,16.31437927]
[1729850093483,8.0565081,172.6,172.57,8.61622483]
[1729850093685,8.0565081,172.6,172.58,1.45037472]
[1729850093885,8.0565081,172.6,172.57,2.8993]
[1729850094093,8.0565081,172.6,172.58,1.45041323]
[1729850094295,8.0565081,172.6,172.57,2.8993]
[1729850094496,2.93006908,172.64,172.6,2.899]
[1729850094691,2.93006908,172.64,172.56,8.0565081]
[1729850094692,8.0565081,172.61,172.56,8.0565081]
[1729850094888,2.93006908,172.64,172.57,9.48795527]
[1729850095091,8.0565081,172.61,172.58,4.34958722]
[1729850095295,8.0565081,172.61,172.58,2.8992]